fUST/lending_fUST_20260203
["ID","MTS","AMOUNT","RATE_DAILY","PERIOD"]
[404416253,1770121783897,-774.82291082,0.00015,2]
[404416261,1770121832342,-5000.0,0.00017293,2]
[404416262,1770121832351,-722.0,0.00017468,2]
[404416263,1770121832361,-300.0,0.00017469,2]
[404416264,1770121832370,-300.0,0.00017469,2]
[404416265,1770121832380,-90.69681019,0.00017469,2]
[404416266,1770121832391,-209.30318981,0.00017469,2]
[404416267,1770121832401,-300.0,0.00017469,2]
[404416268,1770121832410,-677.0,0.00017469,2]
[404416269,1770121832419,-9547.67805739,0.0001747,2]
[404416270,1770121832430,-718.8628463,0.0001747,2]
[404416271,1770121832442,-7963.68728515,0.0001747,2]
[404416272,1770121832451,-301.0,0.00019071,2]
[404416274,1770121832461,-300.0,0.00019071,2]
[404416275,1770121832470,-301.0,0.00019071,2]
[404416276,1770121832479,-400.0,0.00019071,2]
[404416277,1770121832488,-553.21800185,0.00020717,2]
[404416278,1770121832497,-5000.0,0.00020718,2]
[404416279,1770121832506,-150.0,0.00020823,2]
[404416280,1770121832516,-444.63058317,0.00021038,2]
[404416281,1770121832527,-534.64380724,0.00021038,2]
[404416370,1770121838529,-500.0,0.00020717,2]
[404416372,1770121838540,-500.0,0.00020717,2]
[404416374,1770121838550,-500.0,0.00020717,2]
[404416376,1770121838559,-500.0,0.00020717,2]
[404416378,1770121838569,-500.0,0.00020717,2]
[404416379,1770121838578,-500.0,0.00020717,2]
[404416381,1770121838588,-500.0,0.00020717,2]
[404416383,1770121838598,-500.0,0.00020717,2]
[404416385,1770121838607,-500.0,0.00020717,2]
[404416387,1770121838616,-500.0,0.00020717,2]
[404416388,1770121838625,-500.0,0.00020717,2]
[404416390,1770121838634,-500.0,0.00020717,2]
[404416392,1770121838644,-500.0,0.00020717,2]
[404416394,1770121838654,-500.0,0.00020717,2]
[404416395,1770121838663,-57.17691164,0.00020717,2]
[404416397,1770121838679,-565.71289641,0.00020717,2]
[404416399,1770121838688,-500.0,0.00020717,2]
[404416401,1770121838697,-500.0,0.00020717,2]
[404416402,1770121838707,-565.57546489,0.00020717,2]
[404416404,1770121838717,-486.00763672,0.00020717,2]
[404416406,1770121838729,-13.99236328,0.00020717,2]
[404416408,1770121838740,-355.44434571,0.00020717,2]
[404416410,1770121838751,-144.55565429,0.00020717,2]
[404416412,1770121838761,-500.0,0.00020717,2]
[404416413,1770121838771,-500.0,0.00020717,2]
[404416415,1770121838780,-500.0,0.00020717,2]
[404416417,1770121838790,-500.0,0.00020717,2]
[404416418,1770121838800,-500.0,0.00020717,2]
[404416420,1770121838809,-500.0,0.00020717,2]
[404416422,1770121838819,-332.56411758,0.00020717,2]
[404416424,1770121838829,-6395.48319734,0.00021038,2]
[404416425,1770121838838,-150.49870303,0.00021138,2]
[404416427,1770121838848,-3597.84220581,0.000215,2]
[404416429,1770121838857,-215.12719459,0.0002156,2]
[404416431,1770121838867,-156.9909157,0.0002156,2]
[404416432,1770121838877,-1035.83678534,0.000225,2]
[404416434,1770121838888,-177.0,0.00022823,2]
[404416436,1770121838897,-4382.71589581,0.0002465,2]
[404416438,1770121838907,-204.0,0.00024823,2]
[404416440,1770121838918,-231.0,0.00026823,2]
[404416442,1770121838927,-243.77433489,0.00028823,2]
[404416443,1770121838936,-160.65051045,0.00030468,10]
[404416445,1770121838946,-495.46971497,0.00031753,2]
[404416447,1770121838955,-2962.291505,0.00031754,2]
[404416449,1770121838965,-150.49870303,0.00032021,2]
[404416451,1770121838974,-161.6083464,0.000332,117]
[404416452,1770121838983,-860.50877837,0.00033241,2]
[404416454,1770121838994,-853.45,0.00040083,10]
[404416456,1770121839004,-175.7,0.00040083,3]
[404416458,1770121839013,-878.54,0.00040083,3]
[404416459,1770121839023,-1000.0,0.00040093,60]
[404416461,1770121839032,-1000.0,0.00040093,60]
[404416463,1770121839042,-1000.0,0.00040093,60]
[404416465,1770121839051,-1000.0,0.00040093,60]
[404416467,1770121839061,-1000.0,0.00040093,60]
[404416469,1770121839072,-1000.0,0.00040093,60]
[404416471,1770121839081,-1000.0,0.00040093,60]
[404416472,1770121839091,-1000.0,0.00040093,60]
[404416474,1770121839101,-1000.0,0.00040093,60]
[404416476,1770121839110,-1000.0,0.00040093,60]
[404416478,1770121839119,-1000.0,0.00040093,60]
[404416479,1770121839130,-1000.0,0.00040093,60]
[404416481,1770121839141,-1000.0,0.00040093,60]
[404416483,1770121839152,-1000.0,0.00040093,60]
[404416485,1770121839161,-1009.00000004,0.00040093,60]
[404416487,1770121839172,-393699.72469471,0.00040093,120]
[404416489,1770121839182,-199999.999997,0.00040093,30]
[404416491,1770121839191,-150.159628,0.00040093,2]
[404416492,1770121839201,-452.23,0.000402,14]
[404416494,1770121839211,-200.0,0.00041822,120]
[404416496,1770121839220,-2000.0,0.000429,120]
[404416498,1770121839230,-150.49870303,0.00042904,2]
[404416500,1770121839240,-316.35898023,0.00043059,2]
[404416502,1770121839249,-258.90166972,0.00043657,2]
[404416503,1770121839259,-356.60477507,0.00043819,2]
[404416505,1770121839268,-1936.14475134,0.00044923,2]
[404416507,1770121839278,-282.58364827,0.00044923,2]
[404416509,1770121839287,-2000.0,0.000469,120]
[404416511,1770121839296,-263.447,0.00047258,79]
[404416512,1770121839305,-100000.0,0.000499,120]
[404416514,1770121839314,-54180.68539015,0.000499,120]
[404416517,1770121839329,-1355.0346611,0.000499,120]
[404416640,1770121840679,-14052.70289175,0.000499,120]
[404416973,1770121845045,-150.50055813,0.00021038,2]
[404416975,1770121845055,-150.50055813,0.00031924,2]
[404416977,1770121845065,-1044.18564645,0.000499,120]
[404416979,1770121845075,-477.26040614,0.000499,120]
[404416983,1770121845101,-7818.28785805,0.000499,120]
[404417080,1770121846010,-2096.54260122,0.000499,120]
[404417128,1770122464341,566.3774459,0.00013273,2]
[404417129,1770122604014,-500.0,0.00017469,2]
[404417130,1770122604041,-677.0,0.00017469,2]
[404417131,1770122604067,-300.0,0.00017523,2]
[404417132,1770122604094,-469.01109039,0.00017524,2]
[404417133,1770122604163,-3082.14090856,0.00017524,2]
[404417134,1770122633318,-295.44674774,0.00017524,2]
[404417135,1770122633340,-1355.11759491,0.00017524,2]
[404417136,1770122662558,-295.44674774,0.00021284,2]
[404417165,1770122824657,545.19409726,0.00013699,2]
[404417166,1770122872384,-1858.39896189,0.00021071,2]
[404417185,1770123032641,-1781.20518151,0.0002086,2]
[404417186,1770123032700,-475.45227899,0.0002086,2]
[404417187,1770123032711,-741.0,0.00021071,2]
[404417188,1770123032721,-150.50234822,0.00021499,2]
[404417189,1770123032732,-1200.0,0.00026848,2]
[404417190,1770123032743,-300.0,0.00029533,2]
[404417191,1770123032851,-266.39294629,0.00030433,2]
[404417192,1770123032861,-300.0,0.00033847,3]
[404417193,1770123032870,-300.0,0.00033847,3]
[404417194,1770123032879,-309.0,0.00033847,3]
[404417195,1770123032888,-11928.7338164,0.00033848,2]
[404417196,1770123032897,-500.0,0.00037585,7]
[404417197,1770123032906,-372.73273792,0.00037585,15]
[404417239,1770123038889,-140.9216852,0.00037585,15]
[404417241,1770123038899,-285.06394054,0.00037585,15]
[404417243,1770123038908,-203.61823529,0.00037585,7]
[404417245,1770123038917,-5272.63257073,0.00037587,2]
[404417247,1770123038926,-479.50730332,0.00039781,2]
[404417249,1770123038935,-6452.91288922,0.00039942,2]
[404417251,1770123038944,-1000.0,0.00040036,60]
[404417253,1770123038953,-1000.0,0.00040036,60]
[404417254,1770123038962,-1000.0,0.00040036,60]
[404417257,1770123038972,-1000.0,0.00040036,60]
[404417258,1770123038982,-1000.0,0.00040036,60]
[404417260,1770123038991,-1000.0,0.00040036,60]
[404417263,1770123039001,-1000.0,0.00040036,60]
[404417264,1770123039010,-1000.0,0.00040036,60]
[404417266,1770123039020,-1000.0,0.00040036,60]
[404417269,1770123039029,-1000.0,0.00040036,60]
[404417271,1770123039039,-1000.0,0.00040036,60]
[404417273,1770123039049,-1000.0,0.00040036,60]
[404417275,1770123039058,-1000.0,0.00040036,60]
[404417277,1770123039071,-1000.0,0.00040036,60]
[404417278,1770123039080,-1009.00000004,0.00040036,60]
[404417280,1770123039089,-500.0,0.00040091,2]
[404417282,1770123039098,-334.84101201,0.000409,120]
[404417285,1770123039109,-172.9739843,0.00042183,2]
[404417286,1770123039118,-500.0,0.0004228,2]
[404417288,1770123039127,-346.82880048,0.0004228,31]
[404417290,1770123039137,-150.0,0.0004228,120]
[404417292,1770123039146,-6080.4652526,0.00042281,2]
[404417294,1770123039155,-911.9188242,0.00042281,2]
[404417296,1770123039165,-10988.4714151,0.00042281,2]
[404417299,1770123039174,-189.7828816,0.00042281,2]
[404417301,1770123039187,-9713.1181245,0.00042281,2]
[404417303,1770123039197,-2000.0,0.000439,120]
[404417305,1770123039206,-209.47509151,0.000439,16]
[404417307,1770123039215,-159.36,0.0004399,30]
[404417308,1770123039224,-796.85,0.0004399,30]
[404417311,1770123039234,-1838.2511435,0.0004399,3]
[404417312,1770123039243,-621.3,0.0004399,10]
[404417314,1770123039253,-500.0,0.00043999,2]
[404417317,1770123039263,-500.0,0.00043999,2]
[404417318,1770123039272,-500.0,0.00043999,2]
[404417320,1770123039281,-500.0,0.00043999,2]
[404417322,1770123039290,-500.0,0.00043999,2]
[404417324,1770123039299,-500.0,0.00043999,2]
[404417326,1770123039309,-500.0,0.00043999,2]
[404417328,1770123039319,-500.0,0.00043999,2]
[404417330,1770123039328,-500.0,0.00043999,2]
[404417332,1770123039337,-500.0,0.00043999,2]
[404417334,1770123039347,-500.0,0.00043999,2]
[404417336,1770123039356,-120000.0,0.00044,9]
[404417338,1770123039366,-109348.42919725,0.00044,2]
[404417340,1770123039375,-177.0,0.0004428,120]
[404417342,1770123039384,-500.0,0.00046899,2]
[404417344,1770123039394,-2000.0,0.000469,120]
[404417346,1770123039403,-1356.7351856,0.00047989,2]
[404417348,1770123039412,-2451.8593866,0.00047989,2]
[404417350,1770123039421,-2167.2896026,0.00047989,2]
[404417352,1770123039430,-911.9188242,0.00048416,2]
[404417354,1770123039439,-740.91124423,0.00049243,2]
[404417356,1770123039449,-302.7285392,0.00049262,2]
[404417358,1770123039459,-547.0837776,0.00049262,2]
[404417360,1770123039468,-483.5876761,0.00049262,2]
[404417362,1770123039477,-367.6502287,0.0004989,4]
[404417364,1770123039487,-500.0,0.00049899,2]
[404417366,1770123039496,-1001.636658,0.00049899,120]
[404417368,1770123039505,-250.0,0.00049899,120]
[404417370,1770123039514,-250.0,0.00049899,120]
[404417372,1770123039523,-250.0,0.00049899,120]
[404417374,1770123039532,-250.0,0.00049899,120]
[404417376,1770123039542,-250.0,0.00049899,120]
[404417378,1770123039551,-250.0,0.00049899,120]
[404417380,1770123039566,-250.0,0.00049899,120]
[404417382,1770123039575,-250.0,0.00049899,120]
[404417384,1770123039584,-250.0,0.00049899,120]
[404417386,1770123039594,-250.0,0.00049899,120]
[404417388,1770123039604,-250.0,0.00049899,120]
[404417390,1770123039614,-250.0,0.00049899,120]
[404417392,1770123039627,-250.0,0.00049899,120]
[404417394,1770123039637,-250.0,0.00049899,120]
[404417396,1770123039647,-250.0,0.00049899,120]
[404417398,1770123039657,-250.0,0.00049899,120]
[404417400,1770123039666,-250.0,0.00049899,120]
[404417402,1770123039675,-250.0,0.00049899,120]
[404417404,1770123039685,-250.0,0.00049899,120]
[404417406,1770123039694,-250.0,0.00049899,120]
[404417408,1770123039703,-18975.30054514,0.000499,120]
[404417410,1770123039714,-735.3004574,0.0004999,4]
[404417412,1770123039723,-237.16084597,0.0005,120]
[404417414,1770123039735,-139013.01889642,0.0005,7]
[404417416,1770123039744,-740.91124423,0.0005,7]
[404417419,1770123039756,-199.0,0.0005,120]
[404417421,1770123039766,-160.183731,0.0005,120]
[404417423,1770123039775,-151.0,0.0005,120]
[404417424,1770123039784,-367.6502287,0.0005089,4]
[404417426,1770123039793,-2000.0,0.000509,120]
[404417428,1770123039802,-740.91124423,0.000515,7]
[404417430,1770123039812,-773.53809186,0.00052871,30]
[404417432,1770123039821,-740.91124423,0.00053,7]
[404417434,1770123039829,-150.50234822,0.00054124,2]
[404417436,1770123039839,-911.9188242,0.00054552,2]
[404417438,1770123039848,-500.0,0.00054793,2]
[404417440,1770123039857,-500.0,0.00054793,2]
[404417442,1770123039867,-856.48424478,0.00054794,2]
[404417444,1770123039878,-4361.05,0.00054794,120]
[404417447,1770123039888,-500.0,0.00054794,120]
[404417448,1770123039898,-500.0,0.00054794,120]
[404417450,1770123039908,-500.0,0.00054794,120]
[404417452,1770123039918,-500.0,0.00054794,120]
[404417454,1770123039928,-415.20497892,0.00054794,120]
[404417456,1770123039937,-500.0,0.00054794,120]
[404417458,1770123039946,-500.0,0.00054794,120]
[404417460,1770123039955,-392.88687604,0.00054794,120]
[404417462,1770123039964,-500.0,0.00054794,120]
[404417464,1770123039974,-500.0,0.00054794,120]
[404417466,1770123039985,-290.55906157,0.00054794,120]
[404417468,1770123039995,-540.65,0.00054794,120]
[404417470,1770123040004,-500.0,0.00054794,7]
[404417472,1770123040014,-1102.93,0.00054794,30]
[404417474,1770123040023,-500.0,0.00054794,120]
[404417476,1770123040034,-273.84100057,0.00054794,120]
[404417478,1770123040044,-500.0,0.00054794,120]
[404417480,1770123040053,-500.0,0.00054794,120]
[404417482,1770123040068,-500.0,0.00054794,120]
[404417484,1770123040078,-500.0,0.00054794,120]
[404417486,1770123040087,-2436.1,0.00054794,21]
[404417488,1770123040096,-500.0,0.00054794,120]
[404417491,1770123040108,-1076.83,0.00054794,120]
[404417494,1770123040118,-500.0,0.00054794,120]
[404417496,1770123040127,-500.0,0.00054794,120]
[404417498,1770123040138,-526.06,0.00054794,120]
[404417501,1770123040147,-500.0,0.00054794,7]
[404417502,1770123040156,-500.0,0.00054794,120]
[404417504,1770123040166,-500.0,0.00054794,120]
[404417506,1770123040175,-500.0,0.00054794,120]
[404417509,1770123040184,-4536.72,0.00054794,120]
[404417511,1770123040194,-500.0,0.00054794,120]
[404417513,1770123040204,-500.0,0.00054794,120]
[404417515,1770123040213,-500.0,0.00054794,90]
[404417516,1770123040222,-500.0,0.00054794,120]
[404417518,1770123040231,-500.0,0.00054794,120]
[404417520,1770123040240,-1110.09,0.00054794,120]
[404417522,1770123040250,-151.38516647,0.00054794,120]
[404417524,1770123040258,-627.654144,0.00054794,120]
[404417526,1770123040267,-500.0,0.00054794,120]
[404417528,1770123040277,-961.8,0.00054794,120]
[404417530,1770123040286,-2560.12,0.00054794,120]
[404417532,1770123040297,-497.8,0.00054795,120]
[404417534,1770123040306,-500.0,0.00054795,120]
[404417536,1770123040317,-376.57,0.000548,14]
[404417538,1770123040326,-2000.0,0.000549,120]
[404417540,1770123040336,-150.0,0.00057387,120]
[404417542,1770123040345,-500.0,0.00057387,120]
[404417543,1770123040354,-500.0,0.00057387,120]
[404417545,1770123040363,-500.0,0.00057387,120]
[404417547,1770123040372,-233.42207071,0.00057387,120]
[404417549,1770123040381,-500.0,0.00057387,120]
[404417551,1770123040397,-150.0,0.00057387,120]
[404417553,1770123040418,-500.0,0.00057387,120]
[404417555,1770123040437,-201.59957773,0.00057387,120]
[404417557,1770123040459,-2000.0,0.000589,120]
[404417559,1770123040480,-367.6502287,0.0005949,5]
[404417562,1770123040495,-20000.0,0.000595,99]
[404417563,1770123040504,-773.53809186,0.00059743,30]
[404417565,1770123040516,-151.0,0.0006,120]
[404417567,1770123040527,-190.64288,0.0006,120]
[404417570,1770123040538,-367.6502287,0.00060263,5]
[404417572,1770123040549,-500.0,0.00060272,2]
[404417574,1770123040560,-4361.05,0.00060273,120]
[404417576,1770123040571,-500.0,0.00060273,120]
[404417578,1770123040583,-500.0,0.00060273,120]
[404417580,1770123040593,-500.0,0.00060273,120]
[404417582,1770123040604,-500.0,0.00060273,120]
[404417583,1770123040613,-500.0,0.00060273,120]
[404417586,1770123040628,-500.0,0.00060273,120]
[404417587,1770123040639,-500.0,0.00060273,120]
[404417589,1770123040649,-540.65,0.00060273,120]
[404417591,1770123040658,-500.0,0.00060273,7]
[404417593,1770123040669,-1102.93,0.00060273,30]
[404417595,1770123040680,-500.0,0.00060273,120]
[404417597,1770123040689,-500.0,0.00060273,120]
[404417599,1770123040700,-500.0,0.00060273,120]
[404417601,1770123040709,-500.0,0.00060273,120]
[404417603,1770123040719,-500.0,0.00060273,120]
[404417605,1770123040730,-2436.1,0.00060273,21]
[404417607,1770123040740,-500.0,0.00060273,120]
[404417609,1770123040749,-1076.83,0.00060273,120]
[404417611,1770123040758,-519.82747102,0.00060273,120]
[404417613,1770123040768,-500.0,0.00060273,120]
[404417615,1770123040777,-526.06,0.00060273,120]
[404417617,1770123040786,-500.0,0.00060273,120]
[404417619,1770123040795,-500.0,0.00060273,120]
[404417621,1770123040804,-500.0,0.00060273,120]
[404417623,1770123040813,-4536.72,0.00060273,120]
[404417625,1770123040823,-500.0,0.00060273,120]
[404417631,1770123040833,-200.0,0.00060273,120]
[404417632,1770123040915,-500.0,0.00060273,90]
[404417633,1770123040924,-500.0,0.00060273,120]
[404417634,1770123040932,-500.0,0.00060273,120]
[404417635,1770123040940,-1110.09,0.00060273,120]
[404417636,1770123040949,-500.0,0.00060273,120]
[404417637,1770123040958,-961.8,0.00060273,120]
[404417638,1770123040967,-2560.12,0.00060273,120]
[404417639,1770123040976,-490.0,0.00060499,2]
[404417640,1770123040986,-20000.0,0.000605,110]
[404417641,1770123040995,-151.0,0.000605,120]
[404417642,1770123041004,-20000.0,0.000606,110]
[404417643,1770123041014,-911.9188242,0.00060687,2]
[404417644,1770123041024,-367.6502287,0.0006069,5]
[404417645,1770123041033,-20000.0,0.000607,92]
[404417646,1770123041042,-20000.0,0.000608,95]
[404417647,1770123041051,-367.6502287,0.0006089,5]
[404417648,1770123041061,-20000.0,0.000609,95]
[404417650,1770123041071,-151.0,0.000609,120]
[404417652,1770123041080,-367.6502287,0.0006099,5]
[404417654,1770123041089,-20000.0,0.00061,100]
[404417655,1770123041098,-20000.0,0.00061,120]
[404417658,1770123041109,-151.0,0.00061,120]
[404417660,1770123041118,-20000.0,0.0006111,100]
[404417662,1770123041127,-485.0,0.0006111,105]
[404417664,1770123041139,-500.0,0.00061477,120]
[404417666,1770123041148,-20000.0,0.00062,105]
[404417667,1770123041156,-376.57,0.00062,14]
[404417669,1770123041165,-773.53809186,0.00062505,30]
[404417671,1770123041174,-773.53809186,0.00062505,30]
[404417673,1770123041184,-367.6502287,0.0006289,5]
[404417675,1770123041193,-2000.0,0.000629,120]
[404417677,1770123041203,-20000.0,0.00063,92]
[404417679,1770123041213,-500.0,0.00063014,120]
[404417681,1770123041222,-151.0,0.000635,120]
[404417683,1770123041231,-199.0,0.000635,120]
[404417685,1770123041240,-20000.0,0.00064,93]
[404417687,1770123041249,-1000.0,0.00064811,30]
[404417689,1770123041258,-367.6502287,0.0006499,5]
[404417691,1770123041268,-150.50234822,0.00064999,2]
[404417693,1770123041277,-20000.0,0.00065,90]
[404417695,1770123041287,-20000.0,0.000651,90]
[404417697,1770123041296,-151.0,0.000651,120]
[404417699,1770123041305,-367.6502287,0.0006519,5]
[404417701,1770123041314,-20000.0,0.000652,90]
[404417703,1770123041323,-12088.93605427,0.000653,90]
[404417972,1770123046206,-500.0,0.00054794,120]
[404417973,1770123046215,-500.0,0.00060273,120]
[404417974,1770123046225,-60.54319023,0.000653,90]
[404417975,1770123423585,500.0,0.00013273,2]
[404417976,1770123423637,559.25346788,0.00013821,2]
[404417977,1770123670938,3931.0,0.00015725,2]
[404417997,1770124231739,-525.06757274,0.00030137,2]
[404417999,1770124231751,-273.13242726,0.00030137,2]
[404418000,1770124231760,-235.33446207,0.0003526,2]
[404418002,1770124231770,-56.31706253,0.00037,120]
[404418005,1770124231849,-943.68293747,0.00037,120]
[404418006,1770124231858,-208.04588896,0.000372,2]
[404418007,1770124231868,-237.46,0.000373,2]
[404418008,1770124231877,-1600.0,0.00038912,5]
[404418009,1770124231886,-346.14842592,0.00038913,2]
[404418010,1770124231895,-300.0,0.00040036,5]
[404418011,1770124231904,-189.0,0.00040036,5]
[404418012,1770124231913,-292.0,0.00040036,5]
[404418013,1770124231923,-300.0,0.00040036,5]
[404418014,1770124231932,-500.0,0.00040037,31]
[404418015,1770124231941,-500.0,0.00040037,31]
[404418016,1770124231951,-500.0,0.00040037,31]
[404418017,1770124231960,-500.0,0.00040037,31]
[404418018,1770124231969,-264.69766763,0.00040037,31]
[404418019,1770124231978,-500.0,0.00040037,7]
[404418020,1770124231987,-489.33843028,0.00040037,31]
[404418021,1770124231996,-500.0,0.00040037,31]
[404418022,1770124232005,-435.41191647,0.00040037,7]
[404418023,1770124232014,-500.0,0.00040037,31]
[404418024,1770124232025,-500.0,0.00040037,7]
[404418025,1770124232034,-500.0,0.00040037,31]
[404418026,1770124232042,-645.75126392,0.00040037,31]
[404418027,1770124232051,-296.71354506,0.00040037,31]
[404418028,1770124232060,-500.0,0.00040037,31]
[404418029,1770124232069,-500.0,0.00040037,7]
[404418030,1770124232078,-500.0,0.00040037,31]
[404418031,1770124232087,-143.76390168,0.00040037,7]
[404418032,1770124232098,-356.23609832,0.00040037,7]
[404418033,1770124232107,-500.0,0.00040037,31]
[404418034,1770124232116,-500.0,0.00040037,31]
[404418035,1770124232124,-36.42958469,0.00040037,7]
[404418036,1770124232136,-463.57041531,0.00040037,7]
[404418037,1770124232145,-500.0,0.00040037,31]
[404418038,1770124232154,-500.0,0.00040037,31]
[404418039,1770124232163,-500.0,0.00040037,31]
[404418040,1770124232172,-500.0,0.00040037,31]
[404418041,1770124232181,-500.0,0.00040037,31]
[404418042,1770124232191,-1000.0,0.00040038,60]
[404418043,1770124232200,-1000.0,0.00040038,60]
[404418044,1770124232209,-1000.0,0.00040038,60]
[404418045,1770124232218,-1000.0,0.00040038,60]
[404418046,1770124232228,-1000.0,0.00040038,60]
[404418047,1770124232239,-1000.0,0.00040038,60]
[404418048,1770124232249,-1000.0,0.00040038,60]
[404418049,1770124232260,-1000.0,0.00040038,60]
[404418050,1770124232269,-1000.0,0.00040038,60]
[404418051,1770124232278,-675.78901593,0.00040038,60]
[404418079,1770124237829,-167.90565192,0.00038922,2]
[404418081,1770124237838,-324.21098407,0.00040038,60]
[404418083,1770124237847,-1000.0,0.00040038,60]
[404418085,1770124237856,-1000.0,0.00040038,60]
[404418087,1770124237865,-1000.0,0.00040038,60]
[404418089,1770124237874,-1000.0,0.00040038,60]
[404418090,1770124237883,-1009.00000004,0.00040038,60]
[404418092,1770124237892,-158.778,0.00040048,56]
[404418094,1770124237901,-218.0,0.00040049,60]
[404418096,1770124237910,-1000.0,0.00041,120]
[404418098,1770124237919,-397.0,0.00041709,5]
[404418099,1770124237928,-205.1489348,0.00042821,2]
[404418101,1770124237937,-150.0,0.00042821,120]
[404418103,1770124237946,-1000.0,0.00043,120]
[404418105,1770124237955,-177.0,0.00044821,120]
[404418107,1770124237964,-684.832292,0.00045086,2]
[404418109,1770124237973,-235.33446207,0.00045588,2]
[404418111,1770124237982,-237.57941045,0.00046821,120]
[404418112,1770124237991,-1000.0,0.00047,120]
[404418114,1770124238000,-740.91124423,0.00049823,2]
[404418116,1770124238011,-188.0,0.0005,120]
[404418118,1770124238020,-1000.0,0.00053,120]
[404418120,1770124238030,-490.0,0.00053705,2]
[404418122,1770124238039,-6559.2049342,0.00053708,2]
[404418123,1770124238049,-242.78016033,0.00054793,120]
[404418125,1770124238058,-4620.64,0.00054794,120]
[404418127,1770124238067,-500.0,0.00054794,120]
[404418129,1770124238075,-500.0,0.00054794,120]
[404418131,1770124238085,-500.0,0.00054794,120]
[404418133,1770124238094,-153.81712,0.00054794,120]
[404418134,1770124238103,-500.0,0.00054794,7]
[404418136,1770124238112,-1205.3,0.00054794,30]
[404418138,1770124238122,-500.0,0.00054794,120]
[404418140,1770124238131,-322.32674211,0.00054794,25]
[404418142,1770124238140,-299.42937157,0.00054794,120]
[404418144,1770124238149,-457.46955725,0.00054794,120]
[404418145,1770124238158,-500.0,0.00054794,120]
[404418147,1770124238168,-500.0,0.00054794,120]
[404418149,1770124238177,-854.99,0.00054794,120]
[404418151,1770124238186,-500.0,0.00054794,120]
[404418152,1770124238196,-654.82,0.00054794,120]
[404418154,1770124238206,-500.0,0.00054794,120]
[404418156,1770124238216,-500.0,0.00054794,120]
[404418158,1770124238226,-500.0,0.00054794,120]
[404418160,1770124238235,-2453.45,0.00054794,120]
[404418162,1770124238246,-500.0,0.00054794,120]
[404418164,1770124238255,-578.97,0.00054794,120]
[404418167,1770124238264,-392.430412,0.00054794,120]
[404418169,1770124238273,-500.0,0.00054794,120]
[404418170,1770124238282,-500.0,0.00054794,120]
[404418171,1770124238291,-500.0,0.00054794,120]
[404418172,1770124238300,-500.0,0.00054794,120]
[404418173,1770124238385,-500.0,0.00054794,120]
[404418174,1770124238394,-1193.78,0.00054794,120]
[404418175,1770124238403,-500.0,0.00054794,120]
[404418176,1770124238412,-2334.59,0.00054794,21]
[404418177,1770124238421,-500.0,0.00054794,120]
[404418178,1770124238430,-500.0,0.00054794,120]
[404418179,1770124238439,-500.0,0.00054794,120]
[404418180,1770124238452,-500.0,0.00054794,7]
[404418181,1770124238461,-200.0,0.00054794,120]
[404418182,1770124238471,-500.0,0.00054794,120]
[404418183,1770124238479,-566.64,0.00054794,120]
[404418184,1770124238488,-549.95,0.00054794,90]
[404418185,1770124238497,-1000.0,0.00054794,120]
[404418186,1770124238507,-500.0,0.00054794,120]
[404418187,1770124238516,-500.0,0.00054794,120]
[404418188,1770124238527,-5476.12,0.00054794,120]
[404418189,1770124238536,-500.0,0.00054794,120]